bitfinex-derivatives/quotes_ETHF0:USTF0_20210405
["timestamp","ask_amount","ask_price","bid_price","bid_amount"]
[1617627435429,2.90695,2060.0,2059.7,5.10001246]
[1617627438632,2.90695,2060.0,2059.5,5.1021424]
[1617627439436,2.90695,2060.0,2059.6,5.10106367]
[1617627440035,2.90695,2060.0,2059.7,5.10070243]
[1617627441537,2.90695,2060.0,2059.7,11.3426961]
[1617627441736,2.90695,2060.0,2059.9,5.10708573]
[1617627443338,2.90695,2060.0,2059.7,5.10437324]
[1617627444640,2.90695,2060.0,2059.8,5.10202345]
[1617627446840,2.90695,2060.0,2059.7,7.22115917]
[1617627447143,2.90695,2060.0,2059.8,5.10080782]
[1617627448741,3.86935,2060.0,2059.8,5.10080782]
[1617627448941,2.90695,2060.0,2059.8,5.10080782]
[1617627450344,2.90695,2060.0,2059.9,2.90695]
[1617627450544,2.90695,2060.0,2059.9,8.01027384]
[1617627450944,2.90695,2060.0,2059.9,2.90695]
[1617627452845,2.90695,2060.0,2059.9,8.0137418]
[1617627454745,2.90695,2060.0,2059.9,2.90695]
[1617627457649,2.90695,2060.0,2059.9,9.15816913]
[1617627460549,2.90695,2060.0,2059.9,11.93376913]
[1617627460852,2.90695,2060.0,2059.9,5.68255]
[1617627463255,2.90695,2060.0,2059.9,2.90695]
[1617627463656,2.90695,2060.0,2059.9,9.1566154]
[1617627464758,2.90695,2060.0,2059.9,2.90695]
[1617627470166,60.4467,2059.9,2059.8,6.24951482]
[1617627470366,62.4701,2059.9,2059.7,6.24556678]
[1617627471167,62.4701,2059.9,2059.8,5.11163335]
[1617627476477,62.4701,2059.9,2059.7,5.10820499]
[1617627476777,62.4701,2059.9,2059.8,5.10546952]
[1617627477578,62.4701,2059.9,2059.7,5.10553557]
[1617627478681,62.4701,2059.9,2059.8,5.10524439]
[1617627479980,2.0234,2059.9,2059.8,5.10524439]
[1617627480181,2.90695,2060.0,2059.8,5.10524439]
[1617627483487,2.90695,2060.0,2059.7,5.104228]
[1617627483785,2.90695,2060.0,2059.8,5.10384501]
[1617627485388,2.90695,2060.0,2059.6,6.23802909]
[1617627485687,2.90695,2060.0,2059.9,5.10263406]
[1617627487694,2.90695,2060.0,2059.8,8.12166663]
[1617627489288,2.90695,2060.0,2059.9,6.23214831]
[1617627492496,2.90695,2060.0,2059.9,11.13909831]
[1617627492698,2.90695,2060.0,2059.9,4.90695]
[1617627496702,2.90695,2060.0,2059.9,12.26542123]
[1617627498503,2.90695,2060.0,2059.8,7.35951649]
[1617627498904,2.90695,2060.0,2059.3,2.571]
[1617627498905,2.90695,2060.0,2059.7,7.36264971]
[1617627499706,2.90695,2060.0,2059.6,7.36492529]
[1617627499906,2.90695,2060.0,2059.6,9.36492529]
[1617627500611,2.90695,2060.0,2059.9,2.90695]
[1617627504816,2.90695,2060.0,2059.9,5.07955]
[1617627505817,2.90695,2060.0,2059.9,7.07955]
[1617627506217,2.90695,2060.0,2059.9,14.44027008]
[1617627507419,2.90695,2060.0,2059.9,7.07955]
[1617627508323,2.90695,2060.0,2059.9,14.43943188]
[1617627509223,2.90695,2060.0,2059.9,7.07955]
[1617627511531,2.90695,2060.0,2059.9,14.43819198]
[1617627513032,2.90695,2060.0,2059.9,7.07955]
[1617627516733,2.90695,2060.0,2059.9,4.90695]
[1617627519036,2.90695,2060.0,2059.9,2.90695]
[1617627527648,2.5282,2060.4,2059.9,2.90695]
[1617627528047,2.5282,2060.4,2060.3,5.09547764]
[1617627528248,2.1518,2061.0,2060.3,5.09547764]
[1617627528447,39.09305,2061.2,2060.3,5.09547764]
[1617627528648,2.90695,2060.4,2060.3,5.09547764]
[1617627535458,2.90695,2060.4,2060.1,6.2277957]
[1617627536257,2.90695,2060.4,2060.2,6.22481157]
[1617627538560,2.90695,2060.4,2060.3,5.09375243]
[1617627539359,2.90695,2060.4,2060.1,6.22569741]
[1617627540359,2.90695,2060.4,2060.3,5.09344603]
[1617627542163,2.90695,2060.4,2059.4,2.0]
[1617627542164,2.90695,2060.4,2060.2,5.09826873]
[1617627546366,2.90695,2060.4,2060.0,6.23121733]
[1617627546367,2.90695,2060.4,2060.0,5.10008209]
[1617627546770,2.90695,2060.1,2060.0,5.10008209]
[1617627549968,32.90695,2060.1,2059.9,5.10069984]
[1617627550467,32.90695,2060.1,2059.8,5.10146132]
[1617627551769,32.90695,2060.1,2058.8,2.90695]
[1617627551770,32.90695,2060.1,2059.7,5.10232001]
[1617627552468,32.90695,2060.1,2059.8,5.10208062]
[1617627552668,2.90695,2060.1,2059.8,5.10208062]
[1617627553468,2.90695,2060.1,2059.7,5.09850031]
[1617627553869,2.90695,2060.1,2058.8,2.90695]
[1617627553870,2.90695,2060.1,2059.8,5.09749148]
[1617627554169,2.90695,2060.1,2059.9,5.09662916]
[1617627555675,2.90695,2060.1,2059.7,5.0992987]
[1617627556776,2.90695,2059.8,2059.7,5.0992987]
[1617627556976,5.75165,2059.8,2059.7,5.0992987]
[1617627557377,5.75165,2059.8,2059.7,3.9082987]
[1617627557578,35.75165,2059.8,2059.5,6.23247619]
[1617627557779,35.75165,2059.8,2059.4,6.23374035]
[1617627558178,5.75165,2059.8,2059.2,6.23773516]
[1617627558882,2.8447,2059.8,2059.3,6.23571979]
[1617627560682,2.8447,2059.8,2059.4,6.23401743]
[1617627560882,2.90695,2059.5,2059.4,6.23401743]
[1617627564589,2.90695,2059.5,2059.2,6.2297231]
[1617627566090,2.90695,2059.5,2059.3,6.22881771]
[1617627566492,2.90695,2059.5,2059.2,6.22888423]
[1617627566893,2.90695,2059.5,2059.3,6.22845667]
[1617627568900,2.90695,2059.5,2059.4,5.09707928]
[1617627578606,2.90695,2059.5,2059.3,5.09243784]
[1617627579406,2.90695,2059.5,2059.4,5.09200337]
[1617627585213,2.90695,2059.5,2059.3,5.09335849]
[1617627585414,5.73205,2059.5,2059.3,5.09335849]
[1617627590319,5.73205,2059.5,2059.1,6.22478032]
[1617627590320,5.73205,2059.5,2059.2,5.09351297]
[1617627592922,5.73205,2059.5,2059.1,5.09272004]
[1617627593121,2.90695,2059.2,2059.1,5.09272004]
[1617627595722,34.90695,2059.2,2059.1,5.09272004]
[1617627595924,34.90695,2059.2,2058.9,5.09456401]
[1617627596323,34.90695,2059.2,2058.7,6.22668934]
[1617627596324,34.90695,2059.2,2058.7,5.09790085]
[1617627597123,2.90695,2058.8,2058.7,5.09790085]
[1617627597325,5.38315,2058.8,2058.6,5.09828595]
[1617627600831,5.38315,2058.8,2058.5,5.09397417]
[1617627601832,5.38315,2058.8,2058.2,7.99209438]
[1617627602632,5.38315,2058.8,2058.3,5.08407953]
[1617627603034,5.38315,2058.8,2058.4,5.08507]
[1617627603234,2.4762,2058.8,2058.4,5.08507]
[1617627603434,2.8251,2059.5,2058.4,5.08507]
[1617627603634,30.9575,2059.8,2058.4,5.08507]
[1617627603836,30.0,2059.8,2058.4,5.08507]
[1617627604034,30.0,2059.8,2058.2,9.12167029]
[1617627604035,30.0,2059.8,2058.5,5.08371702]
[1617627605134,2.90695,2058.6,2058.5,5.08371702]
[1617627605635,2.90695,2058.6,2058.4,6.21084736]
[1617627607438,2.90695,2058.6,2058.5,5.08267572]
[1617627608543,2.90695,2058.6,2058.4,6.20962345]
[1617627608940,2.90695,2058.6,2058.5,5.08135319]
[1617627609341,2.90695,2058.6,2058.4,5.08273833]
[1617627611946,2.90695,2058.6,2058.5,5.08209001]
[1617627613346,2.90695,2058.6,2058.4,6.21005158]
[1617627613747,2.90695,2058.6,2058.5,5.08036342]
[1617627614049,2.90695,2058.6,2058.3,6.20933307]
[1617627614851,2.90695,2058.6,2058.4,6.20590017]
[1617627615250,2.90695,2058.6,2058.5,6.20673106]
[1617627615949,2.90695,2058.6,2058.5,7.94963106]
[1617627616551,2.90695,2058.6,2058.5,1.7429]
[1617627617249,2.90695,2058.6,2058.5,4.64985]
[1617627618852,2.90695,2058.6,2058.5,10.85515768]
[1617627619255,2.90695,2058.6,2058.5,4.64985]
[1617627626061,73.9526,2059.2,2058.5,4.64985]
[1617627626661,73.9526,2059.2,2059.0,5.0676584]
[1617627626862,73.9526,2059.2,2059.0,6.8929584]
[1617627627063,12.7924,2060.1,2059.0,6.8929584]
[1617627627262,30.0,2060.6,2059.0,6.8929584]
[1617627627263,32.0,2060.6,2059.0,6.8929584]
[1617627627462,2.90695,2059.1,2059.0,9.7999084]
[1617627628163,2.90695,2059.1,2059.0,10.936233]
[1617627629365,2.90695,2059.1,2059.0,4.73225]
[1617627629966,2.90695,2059.1,2059.0,6.73225]
[1617627630166,64.8787,2060.4,2059.0,6.73225]
[1617627630565,13.8777,2061.0,2059.7,5.06848784]
[1617627630765,13.8777,2061.0,2059.7,7.80918784]
[1617627630965,2.0,2061.1,2059.7,7.80918784]
[1617627631166,2.0,2061.1,2059.8,5.06706005]
[1617627631367,2.0,2061.1,2059.9,2.90695]
[1617627633469,2.90695,2060.0,2059.9,2.90695]
[1617627643581,2.90695,2060.0,2059.6,5.04930147]
[1617627644383,2.90695,2060.0,2059.4,7.05175818]
[1617627644784,2.90695,2060.0,2059.5,5.0512359]
[1617627644983,2.90695,2060.0,2059.5,7.0512359]
[1617627645184,2.90695,2060.0,2059.6,5.04993778]
[1617627645384,74.5713,2060.3,2059.6,5.04993778]
[1617627647487,74.5713,2060.3,2059.9,2.90695]
[1617627648386,12.7149,2061.1,2059.9,2.90695]
[1617627648787,9.09305,2061.2,2059.9,2.90695]
[1617627648987,9.09305,2061.2,2060.5,56.1543]
[1617627649389,2.90695,2060.6,2060.5,56.1543]
[1617627653190,2.90695,2060.6,2060.2,2.90695]
[1617627653590,2.90695,2060.3,2060.2,2.90695]
[1617627656894,2.90695,2060.3,2059.7,5.04817457]
[1617627657496,1.9495,2060.4,2059.8,2.90695]
[1617627658096,1.9495,2060.4,2059.5,5.04750047]
[1617627658497,1.9495,2060.4,2059.4,5.04835223]
[1617627658697,81.2814,2060.5,2059.4,5.04835223]
[1617627659298,81.2814,2060.5,2059.5,5.04694265]
[1617627659498,81.2814,2060.5,2059.8,2.90695]
[1617627661602,2.90695,2059.9,2059.8,2.90695]
[1617627662002,81.2814,2060.5,2059.8,2.90695]
[1617627662605,81.2814,2060.5,2059.8,5.11405]
[1617627662807,81.2814,2060.5,2059.9,2.0]
[1617627663604,39.09305,2061.2,2060.3,2.90695]
[1617627665204,39.09305,2061.2,2060.3,5.59165]
[1617627665605,2.90695,2060.4,2060.3,5.59165]
[1617627671015,9.09305,2061.2,2060.3,7.59165]
[1617627671615,9.09305,2061.2,2060.8,2.90695]
[1617627671815,9.09305,2061.2,2060.8,5.59365]
[1617627673516,2.90695,2060.9,2060.8,5.59365]
[1617627679424,2.90695,2060.9,2060.8,2.90695]
[1617627682535,2.90695,2060.9,2060.8,4.90695]
[1617627682728,2.90695,2060.9,2060.8,2.90695]
[1617627693243,2.90695,2060.9,2060.0,2.0]
[1617627693643,9.09305,2061.2,2060.1,2.90695]
[1617627695746,9.09305,2061.2,2059.8,7.01451658]
[1617627695747,9.09305,2061.2,2060.4,2.90695]
[1617627697649,2.90695,2060.5,2060.4,2.90695]
[1617627701555,2.90695,2060.5,2059.9,5.02541827]
[1617627701754,2.90695,2060.1,2060.0,2.90695]
[1617627718472,2.90695,2060.1,2059.6,5.05822357]
[1617627719273,2.90695,2060.1,2059.5,5.05662768]
[1617627719874,2.90695,2059.6,2059.5,5.05662768]
[1617627722277,2.90695,2059.6,2059.4,7.95531825]
[1617627722679,2.90695,2059.6,2059.5,5.04812939]
[1617627723081,2.90695,2059.6,2059.4,7.95541839]
[1617627723278,5.58905,2059.6,2059.4,7.95541839]
[1617627724478,2.90695,2059.6,2059.4,7.95541839]
[1617627725380,2.90695,2059.6,2059.5,5.04701189]
[1617627725581,2.90695,2059.6,2059.5,7.72741189]
[1617627725887,2.90695,2059.6,2059.5,2.6804]
[1617627727286,2.90695,2059.6,2059.4,9.07416793]
[1617627732587,2.90695,2059.6,2059.5,5.04767741]
[1617627737492,2.90695,2059.6,2059.5,7.34807741]
[1617627738291,2.90695,2059.6,2059.5,2.3004]
[1617627739591,2.90695,2059.6,2059.5,4.3004]
[1617627739792,68.0869,2060.7,2059.5,4.3004]
[1617627739992,68.0869,2060.7,2060.4,2.90695]
[1617627740192,68.0869,2060.7,2060.4,5.14655]
[1617627741797,32.0,2061.7,2060.4,5.14655]
[1617627741995,2.90695,2060.5,2060.4,5.14655]
[1617627742196,32.0,2061.7,2060.4,5.14655]
[1617627742197,2.0,2061.7,2060.4,5.14655]
[1617627742397,2.0,2062.2,2060.4,5.14655]
[1617627743998,12.0,2061.2,2061.1,2.90695]
[1617627744198,12.0,2061.2,2061.1,4.69675]
[1617627746500,12.0,2061.2,2061.1,2.90695]
[1617627751105,9.09305,2061.2,2061.1,4.90695]
[1617627753307,9.09305,2061.2,2061.1,9.92276332]
[1617627754711,9.09305,2061.2,2061.1,4.90695]
[1617627755011,9.09305,2061.2,2061.1,9.923311]
[1617627756311,9.09305,2061.2,2061.1,4.90695]
[1617627756511,9.09305,2061.2,2061.1,11.0361782]
[1617627758412,7.63125,2061.2,2061.1,11.0361782]
[1617627759815,7.63125,2061.2,2061.1,4.90695]
[1617627760217,7.63125,2061.2,2061.1,11.04111899]
[1617627760916,7.60392,2061.2,2061.1,11.04111899]
[1617627762921,7.60392,2061.2,2061.1,4.90695]
[1617627763119,6.64812,2061.2,2061.1,4.90695]
[1617627763321,3.99592,2061.2,2061.1,4.90695]
[1617627763521,0.86642,2061.2,2061.1,4.90695]
[1617627763725,2e-05,2061.2,2061.1,4.90695]
[1617627767623,2e-05,2061.2,2061.1,2.90695]
[1617627769925,2e-05,2061.2,2061.1,4.90695]
[1617627772228,2.90695,2062.4,2061.1,4.90695]
[1617627774131,2.90695,2062.4,2062.3,2.90695]
[1617627774331,57.1535,2063.2,2062.3,5.60875]
[1617627775331,57.1535,2063.2,2062.3,7.60875]
[1617627776135,12.856,2064.5,2062.3,7.60875]
[1617627776334,2.90695,2063.1,2062.6,2.90695]
[1617627776534,2.90695,2063.1,2062.6,4.90695]
[1617627779336,13.4499,2064.8,2062.6,4.90695]
[1617627779938,13.4499,2064.8,2062.6,5.86835]
[1617627780339,2.90695,2063.7,2062.6,5.86835]
[1617627780538,13.4499,2064.8,2062.6,5.86835]
[1617627781041,2.56378,2062.7,2062.6,4.90695]
[1617627784546,1.33718,2062.7,2062.6,4.90695]
[1617627786847,1.7688,2065.4,2062.6,4.90695]
[1617627787248,1.7688,2065.4,2063.8,55.4658]
[1617627787950,104.6569,2065.5,2063.8,55.4658]
[1617627788349,104.6569,2065.5,2064.6,2.90695]
[1617627788552,104.6569,2065.5,2063.8,55.4658]
[1617627788749,90.6045,2065.5,2063.8,55.4658]
[1617627790150,92.5731,2065.5,2062.6,2.0]
[1617627790350,92.5731,2065.5,2063.9,2.90695]
[1617627790951,92.5731,2065.5,2063.3,57.9459]
[1617627792252,2.90695,2063.4,2063.3,57.9459]
[1617627792452,5.60195,2063.4,2063.0,2.90695]
[1617627793452,2.695,2063.4,2063.0,2.90695]
[1617627793653,2.8283,2063.9,2063.4,56.9405]
[1617627794254,2.90695,2063.5,2063.4,56.9405]
[1617627795053,2.90695,2063.5,2063.0,2.90695]
[1617627795253,2.90695,2063.5,2062.1,2.0]
[1617627796356,32.8283,2063.9,2063.0,2.90695]
[1617627798458,32.8283,2063.9,2063.3,2.90695]
[1617627798658,32.8283,2063.9,2062.9,55.1321]
[1617627798858,2.8283,2063.9,2062.9,55.1321]
[1617627799057,2.0,2064.2,2062.9,55.1321]
[1617627799257,2.6602,2064.0,2062.9,55.1321]
[1617627799457,4.6602,2064.0,2062.9,55.1321]
[1617627800457,4.6602,2064.0,2063.3,2.90695]
[1617627802357,2.90695,2063.4,2063.3,2.90695]
[1617627805059,2.6602,2064.0,2063.3,2.90695]
[1617627805258,30.0,2064.2,2063.3,2.90695]
[1617627805959,68.2438,2064.3,2063.3,2.90695]
[1617627806158,30.0,2064.6,2063.3,2.90695]
[1617627806358,32.0,2064.6,2063.3,2.90695]
[1617627806558,32.0,2064.6,2063.7,2.90695]
[1617627808561,2.90695,2063.8,2063.7,2.90695]
[1617627809059,4.64485,2063.8,2063.7,2.90695]
[1617627821064,2.90695,2063.8,2063.7,2.90695]
[1617627823669,2.90695,2063.8,2063.7,4.90695]
[1617627823868,2.90695,2063.8,2063.7,2.90695]
[1617627826472,13.5854,2065.0,2063.7,2.90695]
[1617627826672,12.9361,2065.1,2064.2,2.90695]
[1617627826872,12.9361,2065.1,2064.2,5.23525]
[1617627827474,12.9361,2065.1,2064.3,2.0]
[1617627828374,12.9039,2065.0,2064.3,2.0]
[1617627828574,12.9039,2065.0,2064.2,2.90695]
[1617627828774,15.81085,2065.0,2064.9,2.90695]
[1617627828974,15.81085,2065.0,2063.6,2.0]
[1617627829374,17.81445,2065.0,2063.6,2.0]
[1617627829576,17.81445,2065.0,2063.9,73.2284]
[1617627830776,17.81445,2065.0,2064.9,2.90695]
[1617627832076,17.81445,2065.0,2064.8,66.0853]
[1617627836479,17.81445,2065.0,2064.8,64.4084]
[1617627836679,15.81085,2065.0,2064.8,64.4084]
[1617627836880,15.81085,2065.0,2064.9,2.90695]
[1617627839885,45.81085,2065.0,2064.2,2.4945]
[1617627840083,45.81085,2065.0,2063.7,4.9609965]
[1617627840587,45.81085,2065.0,2063.3,4.96653644]
[1617627840786,42.9039,2065.0,2063.9,2.90695]
[1617627840986,12.9039,2065.0,2063.9,2.90695]
[1617627842791,12.9039,2065.0,2064.2,2.90695]
[1617627844891,2.90695,2064.5,2064.2,2.90695]
[1617627849992,14.0458,2064.4,2064.2,2.90695]
[1617627852405,14.0458,2064.4,2064.2,4.90695]
[1617627853194,14.0458,2064.4,2064.2,5.87875]
[1617627853395,13.0841,2064.4,2064.2,5.87875]
[1617627853597,2.0,2066.5,2064.2,5.87875]
[1617627853796,15.4964,2066.5,2065.1,64.3483]
[1617627853996,15.4964,2066.5,2065.1,66.168]
[1617627854797,15.4964,2066.5,2065.5,2.90695]
[1617627855998,13.4964,2066.5,2065.5,2.90695]
[1617627856202,13.4964,2066.5,2065.5,5.52165]
[1617627856902,2.90695,2065.6,2065.5,5.52165]
[1617627857101,2.90695,2065.6,2065.5,2.90695]
[1617627858903,2.88499,2065.6,2065.5,2.90695]
[1617627859102,10.59052,2066.5,2065.5,2.90695]
[1617627860905,10.59052,2066.5,2065.2,2.0]
[1617627860906,10.59052,2066.5,2066.0,2.90695]
[1617627862909,2.90695,2066.1,2066.0,2.90695]
[1617627863309,10.59052,2066.5,2066.0,2.90695]
[1617627863510,10.59052,2066.5,2066.1,2.0]
[1617627863911,30.0,2068.1,2066.1,2.0]
[1617627863912,32.0,2068.1,2066.1,2.0]
[1617627864112,30.0,2068.1,2066.5,72.766]
[1617627864309,30.0,2068.1,2066.5,74.6715]
[1617627864509,30.0,2068.1,2066.6,2.0]
[1617627864909,30.0,2068.1,2067.2,2.90695]
[1617627866110,2.0,2068.0,2066.5,72.766]
[1617627866310,30.0,2067.9,2065.7,2.0]
[1617627866510,2.0,2067.8,2065.9,60.7522]
[1617627866714,30.0,2067.7,2065.9,60.7522]
[1617627866910,32.0,2067.7,2066.4,2.90695]
[1617627867512,30.0,2067.7,2066.4,2.90695]
[1617627867711,30.0,2067.7,2065.9,60.7522]
[1617627867912,2.0,2067.6,2065.9,60.7522]
[1617627868111,34.8267,2067.6,2065.9,60.7522]
[1617627869013,34.8267,2067.6,2066.5,2.90695]
[1617627870913,2.90695,2066.6,2066.5,2.90695]
[1617627874317,2.90695,2066.6,2065.1,2.0]
[1617627874518,2.90695,2066.6,2065.2,2.0]
[1617627874719,13.9321,2066.5,2065.2,2.0]
[1617627874915,15.9487,2066.5,2066.0,2.90695]
[1617627876116,45.9487,2066.5,2066.0,2.90695]
[1617627876315,45.9487,2066.5,2065.2,2.0]
[1617627876516,45.9487,2066.5,2065.0,54.8424]
[1617627876917,2.90695,2065.2,2065.0,57.74935]
[1617627877118,5.44945,2065.2,2065.0,57.74935]
[1617627880618,5.44945,2065.2,2065.0,54.8424]
[1617627885321,5.44945,2065.2,2065.0,55.8045]
[1617627885721,5.44945,2065.2,2065.0,54.8424]
[1617627887022,5.44945,2065.2,2064.9,2.90695]
[1617627887222,5.44945,2065.2,2063.9,58.7218]
[1617627889126,2.5425,2065.2,2064.6,2.90695]
[1617627889326,30.0,2065.2,2064.6,2.90695]
[1617627889528,30.0,2065.2,2063.9,58.7218]
[1617627889731,31.925,2065.2,2063.9,58.7218]
[1617627891129,2.90695,2064.0,2063.9,61.62875]
[1617627893733,2.444,2065.2,2063.9,61.62875]
[1617627894133,2.444,2065.2,2064.0,2.0]
[1617627895035,2.90695,2064.4,2064.3,2.90695]
[1617627897439,2.90695,2064.4,2064.0,2.0]
[1617627897639,2.90695,2064.4,2063.9,58.7218]
[1617627898844,2.90695,2064.4,2063.0,2.0]
[1617627899045,1.7184,2064.6,2063.5,2.90695]
[1617627900346,13.0677,2064.5,2063.5,2.90695]
[1617627901145,2.90695,2063.6,2063.5,2.90695]
[1617627901744,13.0677,2064.5,2063.5,2.90695]
[1617627901944,13.0677,2064.5,2063.6,68.6624]
[1617627902746,13.0677,2064.5,2063.7,2.0]
[1617627903147,13.0677,2064.5,2064.3,2.90695]
[1617627903350,13.0,2064.4,2064.3,2.90695]
[1617627905053,15.90695,2064.4,2064.3,2.90695]
[1617627905854,15.90695,2064.4,2063.7,2.0]
[1617627907055,13.0,2064.4,2064.1,2.90695]
[1617627909156,2.90695,2064.2,2064.1,2.90695]
[1617627912260,13.0,2064.4,2064.1,2.90695]
[1617627912460,13.0,2064.4,2064.1,5.23225]
[1617627912660,13.0,2064.4,2064.2,2.0]
[1617627913062,12.2752,2064.4,2064.2,2.0]
[1617627914060,11.0224,2064.4,2064.2,2.0]
[1617627914261,9.4474,2064.4,2064.2,2.0]
[1617627915664,6.988,2064.4,2064.2,2.0]
[1617627916067,6.988,2064.4,2064.3,6.0712509]
[1617627916266,6.988,2064.4,2064.3,8.0712509]
[1617627916466,6.988,2064.4,2064.3,2.0]
[1617627917466,6.8408,2064.4,2064.3,2.0]
[1617627919868,6.6728,2064.4,2064.3,2.0]
[1617627920268,9.0,2064.2,2064.1,10.08648657]
[1617627920669,9.0,2064.2,2064.1,2.90695]
[1617627921069,8.04,2064.2,2064.1,2.90695]
[1617627921869,5.7428,2064.2,2064.1,2.90695]
[1617627923971,5.7428,2064.2,2064.1,10.09342222]
[1617627924169,4.7818,2064.2,2064.1,10.09342222]
[1617627924370,4.7818,2064.2,2064.1,2.90695]
[1617627925370,3.8089,2064.2,2064.1,2.90695]
[1617627928174,1.93421,2064.2,2064.1,2.90695]
[1617627929175,1.71491,2064.2,2064.1,2.90695]
[1617627932876,2.05979,2064.3,2064.1,2.90695]
[1617627934076,6.6728,2064.4,2064.1,2.90695]
[1617627934278,6.6728,2064.4,2064.3,66.0307]
[1617627935279,9.57975,2064.4,2064.3,66.0307]
[1617627936078,6.6728,2064.4,2064.3,66.0307]
[1617627936986,6.6728,2064.4,2064.3,68.0307]
[1617627937185,6.6728,2064.4,2064.3,75.2359763]
[1617627937685,6.6728,2064.4,2064.3,68.0307]
[1617627939387,6.30077,2064.4,2064.3,68.0307]
[1617627939787,5.90137,2064.4,2064.3,68.0307]
[1617627941989,5.90137,2064.4,2064.3,75.2392073]
[1617627942589,5.90137,2064.4,2064.3,68.0307]
[1617627943893,5.16377,2064.4,2064.3,68.0307]
[1617627944093,5.16377,2064.4,2064.3,75.23586629]
[1617627944291,4.43197,2064.4,2064.3,75.23586629]
[1617627945589,4.43197,2064.4,2064.3,68.0307]
[1617627946290,3.59593,2064.4,2064.3,66.0307]
[1617627947191,3.59593,2064.4,2064.3,72.13420595]
[1617627947391,6.50288,2064.4,2064.3,72.13420595]
[1617627948991,6.50288,2064.4,2064.3,66.0307]
[1617627949392,6.50288,2064.4,2064.3,72.13491582]
[1617627949792,6.50288,2064.4,2064.3,66.0307]
[1617627950195,6.50288,2064.4,2064.3,72.13417469]
[1617627950594,6.50288,2064.4,2064.3,66.0307]
[1617627950795,6.50288,2064.4,2064.3,72.13484062]
[1617627951196,6.50288,2064.4,2064.3,66.0307]
[1617627951996,6.50288,2064.4,2064.3,71.0273428]
[1617627953497,6.50288,2064.4,2064.3,66.0307]
[1617627953695,6.50288,2064.4,2064.2,4.99881987]
[1617627954295,6.50288,2064.4,2064.1,4.99809751]
[1617627956696,36.50288,2064.4,2064.1,2.88629751]
[1617627957096,36.50288,2064.4,2063.8,6.11085066]
[1617627957397,6.50288,2064.4,2063.8,6.11085066]
[1617627957597,2.90695,2063.9,2063.8,6.11085066]
[1617627958401,2.90695,2063.9,2063.8,5.44595066]
[1617627958599,2.90695,2063.9,2063.1,7.22799902]
[1617627959199,2.90695,2063.9,2063.0,7.23197661]
[1617627959598,2.90695,2063.9,2063.2,7.24626876]
[1617627959799,2.90695,2063.3,2063.2,7.24626876]
[1617627960403,2.90695,2063.3,2062.9,8.36000577]
[1617627961802,2.90695,2063.0,2062.8,11.26583793]
[1617627962001,5.73105,2063.0,2062.8,11.26583793]
[1617627963003,5.73105,2063.0,2062.8,2.90695]
[1617627965002,5.73105,2063.0,2062.7,8.36161441]
[1617627965202,7.73105,2063.0,2062.6,8.36467379]
[1617627965407,37.73105,2063.0,2062.6,8.36467379]
[1617627965606,35.73105,2063.0,2062.6,8.36467379]
[1617627965805,2.90695,2062.7,2062.6,7.25781257]
[1617627966103,2.90695,2062.7,2061.7,2.90695]
[1617627966104,2.90695,2062.7,2062.5,7.26027128]
[1617627967607,2.90695,2062.7,2062.4,7.26369717]
[1617627968007,2.90695,2062.7,2062.5,7.26230992]
[1617627968807,2.90695,2062.7,2061.7,12.40381682]
[1617627968808,2.90695,2062.7,2062.4,7.26375388]
[1617627971207,2.90695,2062.7,2062.5,7.26402579]
[1617627973209,2.90695,2062.7,2062.6,7.26263148]
[1617627973512,2.90695,2062.7,2062.5,7.26456062]
[1617627974317,2.90695,2062.7,2062.4,7.27058031]
[1617627975118,2.90695,2062.7,2062.5,7.27086784]
[1617627976417,2.90695,2062.7,2062.4,7.27497676]
[1617627978118,2.90695,2062.7,2062.0,11.30115395]
[1617627978119,2.90695,2062.7,2062.0,2.90695]
[1617627979818,2.90695,2062.1,2062.0,2.90695]
[1617627982119,30.0,2063.1,2062.0,2.90695]
[1617627982320,30.0,2063.1,2062.0,7.91574228]
[1617627982821,30.0,2063.1,2062.0,2.90695]
[1617627983021,2.0,2063.0,2062.0,2.90695]
[1617627983222,4.4343,2063.0,2062.0,2.90695]
[1617627983722,30.0,2062.9,2062.0,2.90695]
[1617627983921,2.90695,2062.1,2061.7,7.91271923]
[1617627984126,2.90695,2062.1,2061.7,2.90695]
[1617627985927,2.90695,2061.8,2061.7,2.90695]
[1617627988029,2.90695,2061.8,2061.5,7.0131411]
[1617627988631,2.90695,2061.8,2061.5,2.0]
[1617627989932,2.90695,2061.8,2061.5,2.9783]
[1617627990632,11.0,2062.1,2061.5,2.9783]
[1617627991934,11.0,2062.1,2062.0,2.90695]
[1617627992132,11.0,2062.1,2062.0,5.87695]
[1617627992534,11.0,2062.1,2062.0,4.90695]
[1617627992737,10.8424,2062.1,2062.0,4.90695]
[1617627993133,10.8424,2062.1,2062.0,2.90695]
[1617627993535,10.8424,2062.1,2062.0,0.9621]
[1617627993736,10.8424,2062.1,2061.5,78.1354]
[1617627993937,10.8424,2062.1,2061.8,2.90695]
[1617627996040,2.90695,2061.9,2061.8,2.90695]
[1617627996942,10.8424,2062.1,2061.8,2.90695]
[1617627997942,10.8424,2062.1,2061.8,4.90695]
[1617627998343,10.1174,2062.1,2061.8,4.90695]
[1617628000846,10.1174,2062.1,2061.9,56.6012]
[1617628002647,10.1174,2062.1,2061.9,57.5642]
[1617628003947,10.1174,2062.1,2061.9,56.6012]
[1617628004148,10.1174,2062.1,2061.8,4.90695]
[1617628007754,7.9704,2062.1,2061.8,2.0]
[1617628007955,7.9704,2062.1,2061.6,2.0]